Workbook

Sheet Start
A1: Grundrechenarten üben
A3: Name: | D3: Datum
A4: Alter: | D4: =NOW() -> 2023-03-13T19:24:38.280
A6: Punktestand
A7: Grundrechenarten | B7: kleines 1x1 | C7: kleines 1x1 unsortiert | D7: Gesamtpunkte
A8: =Grundrechenarten!A2 -> 0 | B8: ='kleines 1x1'!A1 -> 0 | C8: ='kleines 1x1 unsortiert'!A1 -> 0 | D8: =SUM(A8:C8) -> 0

Sheet Grundrechenarten
A1: Punkte | B1: Aufgaben der Grundrechenarten
A2: =A4+A5+A6+A7+A8+A9+A10+A11+A12+A13+A17+A18+A19+A20+A21+A22+A23+A24+A25+A26+A30+A31+A32+A33+A34+A35+A36+A37+A38+A39+A43+A44+A45+A46+A47+A48+A49+A50+A51+A52 -> 0 | E2: Richtig | F2: FALSE
A3: =I3 -> 0 | C3: Addition | G3: =SUM(A4:A13) -> 0
A4: =IF(F4=0,0,IF(F4=B4+D4,$A$3,0)) -> 0 | B4: =O4 -> 0 | C4: + | D4: =P4 -> 0 | E4: = | G4: =IF(F4=0,"",IF(F4=B4+D4,"richtig","falsch")) ->  | I4: =RANDBETWEEN(1,9) -> 7 | J4: =RANDBETWEEN(1,9) -> 7 | K4: =RANDBETWEEN(10,99) -> 23 | L4: =RANDBETWEEN(1,99) -> 10 | M4: =RANDBETWEEN(100,999) -> 103 | N4: =RANDBETWEEN(100,999) -> 622
A5: =IF(F5=0,0,IF(F5=B5+D5,$A$3,0)) -> 0 | B5: =O5 -> 0 | C5: + | D5: =P5 -> 0 | E5: = | G5: =IF(F5=0,"",IF(F5=B5+D5,"richtig","falsch")) ->  | I5: =RANDBETWEEN(1,9) -> 7 | J5: 1 | K5: =RANDBETWEEN(10,99) -> 98 | L5: =RANDBETWEEN(1,99) -> 73 | M5: =RANDBETWEEN(100,999) -> 342 | N5: 353
A6: 0 | B6: 0 | C6: + | D6: 0 | E6: = | I6: 2 | J6: 7 | K6: 58 | L6: 2 | M6: 770 | N6: 121
A7: 0 | B7: 0 | C7: + | D7: 0 | E7: = | I7: 8 | J7: 8 | K7: 12 | L7: 80 | M7: 287 | N7: 893
A8: 0 | B8: 0 | C8: + | D8: 0 | E8: = | I8: 5 | J8: 4 | K8: 75 | L8: 43 | M8: 467 | N8: 759
A9: 0 | B9: 0 | C9: + | D9: 0 | E9: = | I9: 1 | J9: 7 | K9: 28 | L9: 8 | M9: 223 | N9: 933
A10: 0 | B10: 0 | C10: + | D10: 0 | E10: = | I10: 3 | J10: 9 | K10: 61 | L10: 84 | M10: 202 | N10: 627
A11: 0 | B11: 0 | C11: + | D11: 0 | E11: = | I11: 9 | J11: 3 | K11: 96 | L11: 16 | M11: 611 | N11: 256
A12: 0 | B12: 0 | C12: + | D12: 0 | E12: = | I12: 4 | J12: 2 | K12: 12 | L12: 30 | M12: 102 | N12: 498
A13: 0 | B13: 0 | C13: + | D13: 0 | E13: = | I13: 2 | J13: 7 | K13: 17 | L13: 56 | M13: 832 | N13: 199
A16: =I16 -> 0 | C16: Subtraktion | G16: =SUM(A17:A26) -> 0
A17: =IF(F17=0,0,IF(F17=B17-D17,$A$16,0)) -> 0 | B17: =R17 -> 0 | C17: - | D17: =S17 -> 0 | E17: = | G17: =IF(F17=0,"",IF(F17=B17-D17,"richtig","falsch")) ->  | I17: =IF(T17=J17,T17+1,T17) -> 9 | J17: =RANDBETWEEN(1,5) -> 5 | K17: =IF(U17=L17,U17+1,U17) -> 58 | L17: =RANDBETWEEN(10,50) -> 46 | M17: =IF(V17=N17,V17+1,V17) -> 556 | N17: =RANDBETWEEN(100,500) -> 436 | O17: =RANDBETWEEN(1,9) -> 9 | P17: =RANDBETWEEN(10,50) -> 12 | Q17: =RANDBETWEEN(100,500) -> 120 | T17: =IF($J$17>$O$17,$J$17+$O$17,$O$17) -> 9 | U17: =IF($L$17>$P$17,$L$17+$P$17,$P$17) -> 58 | V17: =IF($N$17>$Q$17,$N$17+$Q$17,$Q$17) -> 556
A18: =IF(F18=0,0,IF(F18=B18-D18,$A$16,0)) -> 0 | B18: =R18 -> 0 | C18: - | D18: =S18 -> 0 | E18: = | G18: =IF(F18=0,"",IF(F18=B18-D18,"richtig","falsch")) ->  | I18: =IF(T18=J18,T18+1,T18) -> 7 | J18: =RANDBETWEEN(1,5) -> 4 | K18: =IF(U18=L18,U18+1,U18) -> 28 | L18: =RANDBETWEEN(10,50) -> 20 | M18: =IF(V18=N18,V18+1,V18) -> 365 | N18: =RANDBETWEEN(100,500) -> 228 | O18: =RANDBETWEEN(1,9) -> 3 | P18: 28 | Q18: 365 | T18: =IF($J$18>$O$18,$J$18+$O$18,$O$18) -> 7 | U18: =IF($L$18>$P$18,$L$18+$P$18,$P$18) -> 28 | V18: =IF($N$18>$Q$18,$N$18+$Q$18,$Q$18) -> 365
A19: 0 | B19: 0 | C19: - | D19: 0 | E19: = | I19: 8 | J19: 5 | K19: 19 | L19: 18 | M19: 717 | N19: 378 | O19: 3 | P19: 19 | Q19: 339 | T19: =IF($J$19>$O$19,$J$19+$O$19,$O$19) -> 8 | U19: =IF($L$19>$P$19,$L$19+$P$19,$P$19) -> 19 | V19: =IF($N$19>$Q$19,$N$19+$Q$19,$Q$19) -> 717
A20: 0 | B20: 0 | C20: - | D20: 0 | E20: = | I20: 6 | J20: 5 | K20: 73 | L20: 40 | M20: 896 | N20: 489 | O20: 6 | P20: 33 | Q20: 407 | T20: =IF($J$20>$O$20,$J$20+$O$20,$O$20) -> 6 | U20: =IF($L$20>$P$20,$L$20+$P$20,$P$20) -> 73 | V20: =IF($N$20>$Q$20,$N$20+$Q$20,$Q$20) -> 896
A21: 0 | B21: 0 | C21: - | D21: 0 | E21: = | I21: 5 | J21: 1 | K21: 32 | L21: 26 | M21: 302 | N21: 139 | O21: 5 | P21: 32 | Q21: 302 | T21: =IF($J$21>$O$21,$J$21+$O$21,$O$21) -> 5 | U21: =IF($L$21>$P$21,$L$21+$P$21,$P$21) -> 32 | V21: =IF($N$21>$Q$21,$N$21+$Q$21,$Q$21) -> 302
A22: 0 | B22: 0 | C22: - | D22: 0 | E22: = | I22: 4 | J22: 3 | K22: 24 | L22: 17 | M22: 565 | N22: 446 | O22: 3 | P22: 24 | Q22: 119 | T22: =IF($J$22>$O$22,$J$22+$O$22,$O$22) -> 3 | U22: =IF($L$22>$P$22,$L$22+$P$22,$P$22) -> 24 | V22: =IF($N$22>$Q$22,$N$22+$Q$22,$Q$22) -> 565
A23: 0 | B23: 0 | C23: - | D23: 0 | E23: = | I23: 3 | J23: 2 | K23: 25 | L23: 23 | M23: 149 | N23: 121 | O23: 3 | P23: 25 | Q23: 149 | T23: =IF($J$23>$O$23,$J$23+$O$23,$O$23) -> 3 | U23: =IF($L$23>$P$23,$L$23+$P$23,$P$23) -> 25 | V23: =IF($N$23>$Q$23,$N$23+$Q$23,$Q$23) -> 149
A24: 0 | B24: 0 | C24: - | D24: 0 | E24: = | I24: 4 | J24: 3 | K24: 45 | L24: 24 | M24: 563 | N24: 283 | O24: 1 | P24: 45 | Q24: 280 | T24: =IF($J$24>$O$24,$J$24+$O$24,$O$24) -> 4 | U24: =IF($L$24>$P$24,$L$24+$P$24,$P$24) -> 45 | V24: =IF($N$24>$Q$24,$N$24+$Q$24,$Q$24) -> 563
A25: 0 | B25: 0 | C25: - | D25: 0 | E25: = | I25: 8 | J25: 5 | K25: 46 | L25: 33 | M25: 503 | N25: 385 | O25: 8 | P25: 13 | Q25: 118 | T25: =IF($J$25>$O$25,$J$25+$O$25,$O$25) -> 8 | U25: =IF($L$25>$P$25,$L$25+$P$25,$P$25) -> 46 | V25: =IF($N$25>$Q$25,$N$25+$Q$25,$Q$25) -> 503
A26: 0 | B26: 0 | C26: - | D26: 0 | E26: = | I26: 9 | J26: 5 | K26: 22 | L26: 14 | M26: 431 | N26: 216 | O26: 4 | P26: 22 | Q26: 431 | T26: =IF($J$26>$O$26,$J$26+$O$26,$O$26) -> 9 | U26: =IF($L$26>$P$26,$L$26+$P$26,$P$26) -> 22 | V26: =IF($N$26>$Q$26,$N$26+$Q$26,$Q$26) -> 431
A29: =I29 -> 0 | C29: Multiplikation | G29: =SUM(A30:A39) -> 0
A30: =IF(F30=0,0,IF(F30=B30*D30,$A$29,0)) -> 0 | B30: =O30 -> 0 | C30: * | D30: =P30 -> 0 | E30: = | G30: =IF(F30=0,"",IF(F30=B30*D30,"richtig","falsch")) ->  | I30: =RANDBETWEEN(1,9) -> 6 | J30: =RANDBETWEEN(1,9) -> 9 | K30: =RANDBETWEEN(1,10) -> 7 | L30: =RANDBETWEEN(1,99) -> 99 | M30: =RANDBETWEEN(1,10) -> 5 | N30: =RANDBETWEEN(100,999) -> 727
A31: =IF(F31=0,0,IF(F31=B31*D31,$A$29,0)) -> 0 | B31: =O31 -> 0 | C31: * | D31: =P31 -> 0 | E31: = | G31: =IF(F31=0,"",IF(F31=B31*D31,"richtig","falsch")) ->  | I31: =RANDBETWEEN(1,9) -> 7 | J31: 8 | K31: =RANDBETWEEN(1,10) -> 2 | L31: =RANDBETWEEN(1,99) -> 73 | M31: =RANDBETWEEN(1,10) -> 8 | N31: 674
A32: 0 | B32: 0 | C32: * | D32: 0 | E32: = | I32: 5 | J32: 2 | K32: 7 | L32: 83 | M32: 2 | N32: 588
A33: 0 | B33: 0 | C33: * | D33: 0 | E33: = | I33: 1 | J33: 3 | K33: 10 | L33: 44 | M33: 1 | N33: 706
A34: 0 | B34: 0 | C34: * | D34: 0 | E34: = | I34: 6 | J34: 9 | K34: 4 | L34: 59 | M34: 7 | N34: 387
A35: 0 | B35: 0 | C35: * | D35: 0 | E35: = | I35: 2 | J35: 3 | K35: 9 | L35: 36 | M35: 1 | N35: 900
A36: 0 | B36: 0 | C36: * | D36: 0 | E36: = | I36: 5 | J36: 2 | K36: 5 | L36: 2 | M36: 8 | N36: 961
A37: 0 | B37: 0 | C37: * | D37: 0 | E37: = | I37: 4 | J37: 8 | K37: 1 | L37: 28 | M37: 10 | N37: 910
A38: 0 | B38: 0 | C38: * | D38: 0 | E38: = | I38: 6 | J38: 2 | K38: 5 | L38: 51 | M38: 6 | N38: 983
A39: 0 | B39: 0 | C39: * | D39: 0 | E39: = | I39: 2 | J39: 2 | K39: 1 | L39: 42 | M39: 8 | N39: 752
A42: =I42 -> 0 | C42: Division | G42: =SUM(A43:A52) -> 0
A43: =IF(F43=0,0,IF(F43=B43/D43,$A$42,0)) -> 0 | B43: =O43 -> 0 | C43: / | D43: =P43 -> 0 | E43: = | G43: =IF(F43=0,"",IF(F43=B43/D43,"richtig","falsch")) ->  | I43: =Q43*J43 -> 14 | J43: =RANDBETWEEN(1,9) -> 7 | K43: =R43*L43 -> 384 | L43: =RANDBETWEEN(1,99) -> 96 | M43: =S43*N43 -> 852 | N43: =RANDBETWEEN(100,999) -> 142 | Q43: =RANDBETWEEN(1,9) -> 2 | R43: =RANDBETWEEN(1,9) -> 4 | S43: =RANDBETWEEN(1,9) -> 6
A44: =IF(F44=0,0,IF(F44=B44/D44,$A$42,0)) -> 0 | B44: =O44 -> 0 | C44: / | D44: =P44 -> 0 | E44: = | G44: =IF(F44=0,"",IF(F44=B44/D44,"richtig","falsch")) ->  | I44: =Q44*J44 -> 24 | J44: =RANDBETWEEN(1,9) -> 6 | K44: =R44*L44 -> 594 | L44: =RANDBETWEEN(1,99) -> 99 | M44: =S44*N44 -> 1370 | N44: 685 | Q44: =RANDBETWEEN(1,9) -> 4 | R44: 6 | S44: 2
A45: 0 | B45: 0 | C45: / | D45: 0 | E45: = | I45: 8 | J45: 2 | K45: 216 | L45: 36 | M45: 705 | N45: 705 | Q45: 4 | R45: 6 | S45: 1
A46: 0 | B46: 0 | C46: / | D46: 0 | E46: = | I46: 3 | J46: 1 | K46: 264 | L46: 88 | M46: 1378 | N46: 689 | Q46: 3 | R46: 3 | S46: 2
A47: 0 | B47: 0 | C47: / | D47: 0 | E47: = | I47: 48 | J47: 8 | K47: 40 | L47: 5 | M47: 7497 | N47: 833 | Q47: 6 | R47: 8 | S47: 9
A48: 0 | B48: 0 | C48: / | D48: 0 | E48: = | I48: 64 | J48: 8 | K48: 6 | L48: 3 | M48: 3960 | N48: 990 | Q48: 8 | R48: 2 | S48: 4
A49: 0 | B49: 0 | C49: / | D49: 0 | E49: = | I49: 54 | J49: 6 | K49: 240 | L49: 60 | M49: 5193 | N49: 577 | Q49: 9 | R49: 4 | S49: 9
A50: 0 | B50: 0 | C50: / | D50: 0 | E50: = | I50: 54 | J50: 9 | K50: 470 | L50: 94 | M50: 1550 | N50: 775 | Q50: 6 | R50: 5 | S50: 2
A51: 0 | B51: 0 | C51: / | D51: 0 | E51: = | I51: 15 | J51: 3 | K51: 288 | L51: 96 | M51: 1496 | N51: 748 | Q51: 5 | R51: 3 | S51: 2
A52: 0 | B52: 0 | C52: / | D52: 0 | E52: = | I52: 54 | J52: 6 | K52: 306 | L52: 34 | M52: 5928 | N52: 741 | Q52: 9 | R52: 9 | S52: 8

Sheet kleines 1x1
A1: =(SUM(I:I)*H1) -> 0 | H1: 1
E3: RICHTIG | F3: FALSE
B4: 1x1 | C4: = | E4: =IF(D4=0,$D$2,IF(D4=1,$E$3,$F$3)) ->  | F4: Lösungen | H4: Lösungen verbergen | I4: =IF(D4=O4,1,0) -> 0 | O4: 1
B5: 2x1 | C5: = | E5: =IF(D5=0,$D$2,IF(D5=2,$E$3,$F$3)) ->  | I5: =IF(D5=O5,1,0) -> 0 | O5: 2
B6: 3x1 | C6: = | E6: =IF(D6=0,$D$2,IF(D6=3,$E$3,$F$3)) ->  | I6: 0 | O6: 3
B7: 4x1 | C7: = | E7: =IF(D7=0,$D$2,IF(D7=4,$E$3,$F$3)) ->  | I7: 0 | O7: 4
B8: 5x1 | C8: = | E8: =IF(D8=0,$D$2,IF(D8=5,$E$3,$F$3)) ->  | I8: 0 | O8: 5
B9: 6x1 | C9: = | E9: =IF(D9=0,$D$2,IF(D9=6,$E$3,$F$3)) ->  | I9: 0 | O9: 6
B10: 7x1 | C10: = | E10: =IF(D10=0,$D$2,IF(D10=7,$E$3,$F$3)) ->  | I10: 0 | O10: 7
B11: 8x1 | C11: = | E11: =IF(D11=0,$D$2,IF(D11=8,$E$3,$F$3)) ->  | I11: 0 | O11: 8
B12: 9x1 | C12: = | E12: =IF(D12=0,$D$2,IF(D12=9,$E$3,$F$3)) ->  | I12: 0 | O12: 9
B13: 10x1 | C13: = | E13: =IF(D13=0,$D$2,IF(D13=10,$E$3,$F$3)) ->  | I13: 0 | O13: 10
B15: 1x2 | C15: = | E15: =IF(D15=0,$D$2,IF(D15=2,$E$3,$F$3)) ->  | F15: Lösungen | H15: Lösungen verbergen | I15: =IF(D15=O15,1,0) -> 0 | O15: 2
B16: 2x2 | C16: = | E16: =IF(D16=0,$D$2,IF(D16=4,$E$3,$F$3)) ->  | I16: 0 | O16: 4
B17: 3x2 | C17: = | E17: =IF(D17=0,$D$2,IF(D17=6,$E$3,$F$3)) ->  | I17: 0 | O17: 6
B18: 4x2 | C18: = | E18: =IF(D18=0,$D$2,IF(D18=8,$E$3,$F$3)) ->  | I18: 0 | O18: 8
B19: 5x2 | C19: = | E19: =IF(D19=0,$D$2,IF(D19=10,$E$3,$F$3)) ->  | I19: 0 | O19: 10
B20: 6x2 | C20: = | E20: =IF(D20=0,$D$2,IF(D20=12,$E$3,$F$3)) ->  | I20: 0 | O20: 12
B21: 7x2 | C21: = | E21: =IF(D21=0,$D$2,IF(D21=14,$E$3,$F$3)) ->  | I21: 0 | O21: 14
B22: 8x2 | C22: = | E22: =IF(D22=0,$D$2,IF(D22=16,$E$3,$F$3)) ->  | I22: 0 | O22: 16
B23: 9x2 | C23: = | E23: =IF(D23=0,$D$2,IF(D23=18,$E$3,$F$3)) ->  | I23: 0 | O23: 18
B24: 10x2 | C24: = | E24: =IF(D24=0,$D$2,IF(D24=20,$E$3,$F$3)) ->  | I24: 0 | O24: 20
B26: 1x3 | C26: = | E26: =IF(D26=0,$D$2,IF(D26=3,$E$3,$F$3)) ->  | F26: Lösungen | H26: Lösungen verbergen | I26: =IF(D26=O26,1,0) -> 0 | O26: 3
B27: 2x3 | C27: = | E27: =IF(D27=0,$D$2,IF(D27=6,$E$3,$F$3)) ->  | I27: 0 | O27: 6
B28: 3x3 | C28: = | E28: =IF(D28=0,$D$2,IF(D28=9,$E$3,$F$3)) ->  | I28: 0 | O28: 9
B29: 4x3 | C29: = | E29: =IF(D29=0,$D$2,IF(D29=12,$E$3,$F$3)) ->  | I29: 0 | O29: 12
B30: 5x3 | C30: = | E30: =IF(D30=0,$D$2,IF(D30=15,$E$3,$F$3)) ->  | I30: 0 | O30: 15
B31: 6x3 | C31: = | E31: =IF(D31=0,$D$2,IF(D31=18,$E$3,$F$3)) ->  | I31: 0 | O31: 18
B32: 7x3 | C32: = | E32: =IF(D32=0,$D$2,IF(D32=21,$E$3,$F$3)) ->  | I32: 0 | O32: 21
B33: 8x3 | C33: = | E33: =IF(D33=0,$D$2,IF(D33=24,$E$3,$F$3)) ->  | I33: 0 | O33: 24
B34: 9x3 | C34: = | E34: =IF(D34=0,$D$2,IF(D34=27,$E$3,$F$3)) ->  | I34: 0 | O34: 27
B35: 10x3 | C35: = | E35: =IF(D35=0,$D$2,IF(D35=30,$E$3,$F$3)) ->  | I35: 0 | O35: 30
B37: 1x4 | C37: = | E37: =IF(D37=0,$D$2,IF(D37=4,$E$3,$F$3)) ->  | F37: Lösungen | H37: Lösungen verbergen | I37: =IF(D37=O37,1,0) -> 0 | O37: 4
B38: 2x4 | C38: = | E38: =IF(D38=0,$D$2,IF(D38=8,$E$3,$F$3)) ->  | I38: 0 | O38: 8
B39: 3x4 | C39: = | E39: =IF(D39=0,$D$2,IF(D39=12,$E$3,$F$3)) ->  | I39: 0 | O39: 12
B40: 4x4 | C40: = | E40: =IF(D40=0,$D$2,IF(D40=16,$E$3,$F$3)) ->  | I40: 0 | O40: 16
B41: 5x4 | C41: = | E41: =IF(D41=0,$D$2,IF(D41=20,$E$3,$F$3)) ->  | I41: 0 | O41: 20
B42: 6x4 | C42: = | E42: =IF(D42=0,$D$2,IF(D42=24,$E$3,$F$3)) ->  | I42: 0 | O42: 24
B43: 7x4 | C43: = | E43: =IF(D43=0,$D$2,IF(D43=28,$E$3,$F$3)) ->  | I43: 0 | O43: 28
B44: 8x4 | C44: = | E44: =IF(D44=0,$D$2,IF(D44=32,$E$3,$F$3)) ->  | I44: 0 | O44: 32
B45: 9x4 | C45: = | E45: =IF(D45=0,$D$2,IF(D45=36,$E$3,$F$3)) ->  | I45: 0 | O45: 36
B46: 10x4 | C46: = | E46: =IF(D46=0,$D$2,IF(D46=40,$E$3,$F$3)) ->  | I46: 0 | O46: 40
B48: 1x5 | C48: = | E48: =IF(D48=0,$D$2,IF(D48=5,$E$3,$F$3)) ->  | F48: Lösungen | H48: Lösungen verbergen | I48: =IF(D48=O48,1,0) -> 0 | O48: 5
B49: 2x5 | C49: = | E49: =IF(D49=0,$D$2,IF(D49=10,$E$3,$F$3)) ->  | I49: 0 | O49: 10
B50: 3x5 | C50: = | E50: =IF(D50=0,$D$2,IF(D50=15,$E$3,$F$3)) ->  | I50: 0 | O50: 15
B51: 4x5 | C51: = | E51: =IF(D51=0,$D$2,IF(D51=20,$E$3,$F$3)) ->  | I51: 0 | O51: 20
B52: 5x5 | C52: = | E52: =IF(D52=0,$D$2,IF(D52=25,$E$3,$F$3)) ->  | I52: 0 | O52: 25
B53: 6x5 | C53: = | E53: =IF(D53=0,$D$2,IF(D53=30,$E$3,$F$3)) ->  | I53: 0 | O53: 30
B54: 7x5 | C54: = | E54: =IF(D54=0,$D$2,IF(D54=35,$E$3,$F$3)) ->  | I54: 0 | O54: 35
B55: 8x5 | C55: = | E55: =IF(D55=0,$D$2,IF(D55=40,$E$3,$F$3)) ->  | I55: 0 | O55: 40
B56: 9x5 | C56: = | E56: =IF(D56=0,$D$2,IF(D56=45,$E$3,$F$3)) ->  | I56: 0 | O56: 45
B57: 10x5 | C57: = | E57: =IF(D57=0,$D$2,IF(D57=50,$E$3,$F$3)) ->  | I57: 0 | O57: 50
B59: 1x6 | C59: = | E59: =IF(D59=0,$D$2,IF(D59=6,$E$3,$F$3)) ->  | F59: Lösungen | H59: Lösungen verbergen | I59: =IF(D59=O59,1,0) -> 0 | O59: 6
B60: 2x6 | C60: = | E60: =IF(D60=0,$D$2,IF(D60=12,$E$3,$F$3)) ->  | I60: 0 | O60: 12
B61: 3x6 | C61: = | E61: =IF(D61=0,$D$2,IF(D61=18,$E$3,$F$3)) ->  | I61: 0 | O61: 18
B62: 4x6 | C62: = | E62: =IF(D62=0,$D$2,IF(D62=24,$E$3,$F$3)) ->  | I62: 0 | O62: 24
B63: 5x6 | C63: = | E63: =IF(D63=0,$D$2,IF(D63=30,$E$3,$F$3)) ->  | I63: 0 | O63: 30
B64: 6x6 | C64: = | E64: =IF(D64=0,$D$2,IF(D64=36,$E$3,$F$3)) ->  | I64: 0 | O64: 36
B65: 7x6 | C65: = | E65: =IF(D65=0,$D$2,IF(D65=42,$E$3,$F$3)) ->  | I65: 0 | O65: 42
B66: 8x6 | C66: = | E66: =IF(D66=0,$D$2,IF(D66=48,$E$3,$F$3)) ->  | I66: 0 | O66: 48
B67: 9x6 | C67: = | E67: =IF(D67=0,$D$2,IF(D67=54,$E$3,$F$3)) ->  | I67: 0 | O67: 54
B68: 10x6 | C68: = | E68: =IF(D68=0,$D$2,IF(D68=60,$E$3,$F$3)) ->  | I68: 0 | O68: 60
B70: 1x7 | C70: = | E70: =IF(D70=0,$D$2,IF(D70=7,$E$3,$F$3)) ->  | F70: Lösungen | H70: Lösungen verbergen | I70: =IF(D70=O70,1,0) -> 0 | O70: 7
B71: 2x7 | C71: = | E71: =IF(D71=0,$D$2,IF(D71=14,$E$3,$F$3)) ->  | I71: 0 | O71: 14
B72: 3x7 | C72: = | E72: =IF(D72=0,$D$2,IF(D72=21,$E$3,$F$3)) ->  | I72: 0 | O72: 21
B73: 4x7 | C73: = | E73: =IF(D73=0,$D$2,IF(D73=28,$E$3,$F$3)) ->  | I73: 0 | O73: 28
B74: 5x7 | C74: = | E74: =IF(D74=0,$D$2,IF(D74=35,$E$3,$F$3)) ->  | I74: 0 | O74: 35
B75: 6x7 | C75: = | E75: =IF(D75=0,$D$2,IF(D75=42,$E$3,$F$3)) ->  | I75: 0 | O75: 42
B76: 7x7 | C76: = | E76: =IF(D76=0,$D$2,IF(D76=49,$E$3,$F$3)) ->  | I76: 0 | O76: 49
B77: 8x7 | C77: = | E77: =IF(D77=0,$D$2,IF(D77=56,$E$3,$F$3)) ->  | I77: 0 | O77: 56
B78: 9x7 | C78: = | E78: =IF(D78=0,$D$2,IF(D78=63,$E$3,$F$3)) ->  | I78: 0 | O78: 63
B79: 10x7 | C79: = | E79: =IF(D79=0,$D$2,IF(D79=70,$E$3,$F$3)) ->  | I79: 0 | O79: 70
B81: 1x8 | C81: = | E81: =IF(D81=0,$D$2,IF(D81=8,$E$3,$F$3)) ->  | F81: Lösungen | H81: Lösungen verbergen | I81: =IF(D81=O81,1,0) -> 0 | O81: 8
B82: 2x8 | C82: = | E82: =IF(D82=0,$D$2,IF(D82=16,$E$3,$F$3)) ->  | I82: 0 | O82: 16
B83: 3x8 | C83: = | E83: =IF(D83=0,$D$2,IF(D83=24,$E$3,$F$3)) ->  | I83: 0 | O83: 24
B84: 4x8 | C84: = | E84: =IF(D84=0,$D$2,IF(D84=32,$E$3,$F$3)) ->  | I84: 0 | O84: 32
B85: 5x8 | C85: = | E85: =IF(D85=0,$D$2,IF(D85=40,$E$3,$F$3)) ->  | I85: 0 | O85: 40
B86: 6x8 | C86: = | E86: =IF(D86=0,$D$2,IF(D86=48,$E$3,$F$3)) ->  | I86: 0 | O86: 48
B87: 7x8 | C87: = | E87: =IF(D87=0,$D$2,IF(D87=56,$E$3,$F$3)) ->  | I87: 0 | O87: 56
B88: 8x8 | C88: = | E88: =IF(D88=0,$D$2,IF(D88=64,$E$3,$F$3)) ->  | I88: 0 | O88: 64
B89: 9x8 | C89: = | E89: =IF(D89=0,$D$2,IF(D89=72,$E$3,$F$3)) ->  | I89: 0 | O89: 72
B90: 10x8 | C90: = | E90: =IF(D90=0,$D$2,IF(D90=80,$E$3,$F$3)) ->  | I90: 0 | O90: 80
B92: 1x9 | C92: = | E92: =IF(D92=0,$D$2,IF(D92=9,$E$3,$F$3)) ->  | F92: Lösungen | H92: Lösungen verbergen | I92: =IF(D92=O92,1,0) -> 0 | O92: 9
B93: 2x9 | C93: = | E93: =IF(D93=0,$D$2,IF(D93=18,$E$3,$F$3)) ->  | I93: 0 | O93: 18
B94: 3x9 | C94: = | E94: =IF(D94=0,$D$2,IF(D94=27,$E$3,$F$3)) ->  | I94: 0 | O94: 27
B95: 4x9 | C95: = | E95: =IF(D95=0,$D$2,IF(D95=36,$E$3,$F$3)) ->  | I95: 0 | O95: 36
B96: 5x9 | C96: = | E96: =IF(D96=0,$D$2,IF(D96=45,$E$3,$F$3)) ->  | I96: 0 | O96: 45
B97: 6x9 | C97: = | E97: =IF(D97=0,$D$2,IF(D97=54,$E$3,$F$3)) ->  | I97: 0 | O97: 54
B98: 7x9 | C98: = | E98: =IF(D98=0,$D$2,IF(D98=63,$E$3,$F$3)) ->  | I98: 0 | O98: 63
B99: 8x9 | C99: = | E99: =IF(D99=0,$D$2,IF(D99=72,$E$3,$F$3)) ->  | I99: 0 | O99: 72
B100: 9x9 | C100: = | E100: =IF(D100=0,$D$2,IF(D100=81,$E$3,$F$3)) ->  | I100: 0 | O100: 81
B101: 10x9 | C101: = | E101: =IF(D101=0,$D$2,IF(D101=90,$E$3,$F$3)) ->  | I101: 0 | O101: 90
B103: 1x10 | C103: = | E103: =IF(D103=0,$D$2,IF(D103=10,$E$3,$F$3)) ->  | F103: Lösungen | H103: Lösungen verbergen | I103: =IF(D103=O103,1,0) -> 0 | O103: 10
B104: 2x10 | C104: = | E104: =IF(D104=0,$D$2,IF(D104=20,$E$3,$F$3)) ->  | I104: 0 | O104: 20
B105: 3x10 | C105: = | E105: =IF(D105=0,$D$2,IF(D105=30,$E$3,$F$3)) ->  | I105: 0 | O105: 30
B106: 4x10 | C106: = | E106: =IF(D106=0,$D$2,IF(D106=40,$E$3,$F$3)) ->  | I106: 0 | O106: 40
B107: 5x10 | C107: = | E107: =IF(D107=0,$D$2,IF(D107=50,$E$3,$F$3)) ->  | I107: 0 | O107: 50
B108: 6x10 | C108: = | E108: =IF(D108=0,$D$2,IF(D108=60,$E$3,$F$3)) ->  | I108: 0 | O108: 60
B109: 7x10 | C109: = | E109: =IF(D109=0,$D$2,IF(D109=70,$E$3,$F$3)) ->  | I109: 0 | O109: 70
B110: 8x10 | C110: = | E110: =IF(D110=0,$D$2,IF(D110=80,$E$3,$F$3)) ->  | I110: 0 | O110: 80
B111: 9x10 | C111: = | E111: =IF(D111=0,$D$2,IF(D111=90,$E$3,$F$3)) ->  | I111: 0 | O111: 90
B112: 10x10 | C112: = | E112: =IF(D112=0,$D$2,IF(D112=100,$E$3,$F$3)) ->  | I112: 0 | O112: 100

Sheet kleines 1x1 unsortiert
A1: =(SUM(I:I)*H1) -> 0 | H1: 2
E3: RICHTIG | F3: FALSE
B4: 9x1 | C4: = | E4: =IF(D4=0,$D$2,IF(D4=9,$E$3,$F$3)) ->  | F4: Lösungen | H4: Lösungen verbergen | I4: =IF(E4="Richtig",1,0) -> 0 | O4: 9
B5: 2x1 | C5: = | E5: =IF(D5=0,$D$2,IF(D5=2,$E$3,$F$3)) ->  | I5: 0 | O5: 2
B6: 8x1 | C6: = | E6: =IF(D6=0,$D$2,IF(D6=8,$E$3,$F$3)) ->  | I6: 0 | O6: 8
B7: 4x1 | C7: = | E7: =IF(D7=0,$D$2,IF(D7=4,$E$3,$F$3)) ->  | I7: 0 | O7: 4
B8: 10x1 | C8: = | E8: =IF(D8=0,$D$2,IF(D8=10,$E$3,$F$3)) ->  | I8: 0 | O8: 10
B9: 6x1 | C9: = | E9: =IF(D9=0,$D$2,IF(D9=6,$E$3,$F$3)) ->  | I9: 0 | O9: 6
B10: 7x1 | C10: = | E10: =IF(D10=0,$D$2,IF(D10=7,$E$3,$F$3)) ->  | I10: 0 | O10: 7
B11: 3x1 | C11: = | E11: =IF(D11=0,$D$2,IF(D11=3,$E$3,$F$3)) ->  | I11: 0 | O11: 3
B12: 1x1 | C12: = | E12: =IF(D12=0,$D$2,IF(D12=1,$E$3,$F$3)) ->  | I12: 0 | O12: 1
B13: 5x1 | C13: = | E13: =IF(D13=0,$D$2,IF(D13=5,$E$3,$F$3)) ->  | I13: =IF(E13="Richtig",1,0) -> 0 | O13: 5
B15: 6x2 | C15: = | E15: =IF(D15=0,$D$2,IF(D15=12,$E$3,$F$3)) ->  | F15: Lösungen | H15: Lösungen verbergen | I15: =IF(E15="Richtig",1,0) -> 0 | O15: 2
B16: 9x2 | C16: = | E16: =IF(D16=0,$D$2,IF(D16=18,$E$3,$F$3)) ->  | I16: 0 | O16: 4
B17: 3x2 | C17: = | E17: =IF(D17=0,$D$2,IF(D17=6,$E$3,$F$3)) ->  | I17: 0 | O17: 6
B18: 10x2 | C18: = | E18: =IF(D18=0,$D$2,IF(D18=20,$E$3,$F$3)) ->  | I18: 0 | O18: 8
B19: 5x2 | C19: = | E19: =IF(D19=0,$D$2,IF(D19=10,$E$3,$F$3)) ->  | I19: 0 | O19: 10
B20: 1x2 | C20: = | E20: =IF(D20=0,$D$2,IF(D20=2,$E$3,$F$3)) ->  | I20: 0 | O20: 12
B21: 8x2 | C21: = | E21: =IF(D21=0,$D$2,IF(D21=16,$E$3,$F$3)) ->  | I21: 0 | O21: 14
B22: 7x2 | C22: = | E22: =IF(D22=0,$D$2,IF(D22=14,$E$3,$F$3)) ->  | I22: 0 | O22: 16
B23: 2x2 | C23: = | E23: =IF(D23=0,$D$2,IF(D23=4,$E$3,$F$3)) ->  | I23: 0 | O23: 18
B24: 4x2 | C24: = | E24: =IF(D24=0,$D$2,IF(D24=8,$E$3,$F$3)) ->  | I24: 0 | O24: 20
B26: 6x3 | C26: = | E26: =IF(D26=0,$D$2,IF(D26=18,$E$3,$F$3)) ->  | F26: Lösungen | H26: Lösungen verbergen | I26: =IF(E26="Richtig",1,0) -> 0 | O26: 3
B27: 10x3 | C27: = | E27: =IF(D27=0,$D$2,IF(D27=30,$E$3,$F$3)) ->  | I27: 0 | O27: 6
B28: 3x3 | C28: = | E28: =IF(D28=0,$D$2,IF(D28=9,$E$3,$F$3)) ->  | I28: 0 | O28: 9
B29: 8x3 | C29: = | E29: =IF(D29=0,$D$2,IF(D29=24,$E$3,$F$3)) ->  | I29: 0 | O29: 12
B30: 5x3 | C30: = | E30: =IF(D30=0,$D$2,IF(D30=15,$E$3,$F$3)) ->  | I30: 0 | O30: 15
B31: 1x3 | C31: = | E31: =IF(D31=0,$D$2,IF(D31=3,$E$3,$F$3)) ->  | I31: 0 | O31: 18
B32: 9x3 | C32: = | E32: =IF(D32=0,$D$2,IF(D32=27,$E$3,$F$3)) ->  | I32: 0 | O32: 21
B33: 4x3 | C33: = | E33: =IF(D33=0,$D$2,IF(D33=12,$E$3,$F$3)) ->  | I33: 0 | O33: 24
B34: 7x3 | C34: = | E34: =IF(D34=0,$D$2,IF(D34=21,$E$3,$F$3)) ->  | I34: 0 | O34: 27
B35: 2x3 | C35: = | E35: =IF(D35=0,$D$2,IF(D35=6,$E$3,$F$3)) ->  | I35: 0 | O35: 30
B37: 9x4 | C37: = | E37: =IF(D37=0,$D$2,IF(D37=36,$E$3,$F$3)) ->  | F37: Lösungen | H37: Lösungen verbergen | I37: =IF(E37="Richtig",1,0) -> 0 | O37: 4
B38: 2x4 | C38: = | E38: =IF(D38=0,$D$2,IF(D38=8,$E$3,$F$3)) ->  | I38: 0 | O38: 8
B39: 8x4 | C39: = | E39: =IF(D39=0,$D$2,IF(D39=32,$E$3,$F$3)) ->  | I39: 0 | O39: 12
B40: 4x4 | C40: = | E40: =IF(D40=0,$D$2,IF(D40=16,$E$3,$F$3)) ->  | I40: 0 | O40: 16
B41: 10x4 | C41: = | E41: =IF(D41=0,$D$2,IF(D41=40,$E$3,$F$3)) ->  | I41: 0 | O41: 20
B42: 6x4 | C42: = | E42: =IF(D42=0,$D$2,IF(D42=24,$E$3,$F$3)) ->  | I42: 0 | O42: 24
B43: 7x4 | C43: = | E43: =IF(D43=0,$D$2,IF(D43=28,$E$3,$F$3)) ->  | I43: 0 | O43: 28
B44: 3x4 | C44: = | E44: =IF(D44=0,$D$2,IF(D44=12,$E$3,$F$3)) ->  | I44: 0 | O44: 32
B45: 1x4 | C45: = | E45: =IF(D45=0,$D$2,IF(D45=4,$E$3,$F$3)) ->  | I45: 0 | O45: 36
B46: 5x4 | C46: = | E46: =IF(D46=0,$D$2,IF(D46=20,$E$3,$F$3)) ->  | I46: 0 | O46: 40
B48: 6x5 | C48: = | E48: =IF(D48=0,$D$2,IF(D48=30,$E$3,$F$3)) ->  | F48: Lösungen | H48: Lösungen verbergen | I48: =IF(E48="Richtig",1,0) -> 0 | O48: 5
B49: 10x5 | C49: = | E49: =IF(D49=0,$D$2,IF(D49=50,$E$3,$F$3)) ->  | I49: 0 | O49: 10
B50: 3x5 | C50: = | E50: =IF(D50=0,$D$2,IF(D50=15,$E$3,$F$3)) ->  | I50: 0 | O50: 15
B51: 8x5 | C51: = | E51: =IF(D51=0,$D$2,IF(D51=40,$E$3,$F$3)) ->  | I51: 0 | O51: 20
B52: 5x5 | C52: = | E52: =IF(D52=0,$D$2,IF(D52=25,$E$3,$F$3)) ->  | I52: 0 | O52: 25
B53: 1x5 | C53: = | E53: =IF(D53=0,$D$2,IF(D53=5,$E$3,$F$3)) ->  | I53: 0 | O53: 30
B54: 9x5 | C54: = | E54: =IF(D54=0,$D$2,IF(D54=45,$E$3,$F$3)) ->  | I54: 0 | O54: 35
B55: 4x5 | C55: = | E55: =IF(D55=0,$D$2,IF(D55=20,$E$3,$F$3)) ->  | I55: 0 | O55: 40
B56: 7x5 | C56: = | E56: =IF(D56=0,$D$2,IF(D56=35,$E$3,$F$3)) ->  | I56: 0 | O56: 45
B57: 2x5 | C57: = | E57: =IF(D57=0,$D$2,IF(D57=10,$E$3,$F$3)) ->  | I57: 0 | O57: 50
B59: 9x6 | C59: = | E59: =IF(D59=0,$D$2,IF(D59=54,$E$3,$F$3)) ->  | F59: Lösungen | H59: Lösungen verbergen | I59: =IF(E59="Richtig",1,0) -> 0 | O59: 6
B60: 2x6 | C60: = | E60: =IF(D60=0,$D$2,IF(D60=12,$E$3,$F$3)) ->  | I60: 0 | O60: 12
B61: 8x6 | C61: = | E61: =IF(D61=0,$D$2,IF(D61=48,$E$3,$F$3)) ->  | I61: 0 | O61: 18
B62: 4x6 | C62: = | E62: =IF(D62=0,$D$2,IF(D62=24,$E$3,$F$3)) ->  | I62: 0 | O62: 24
B63: 10x6 | C63: = | E63: =IF(D63=0,$D$2,IF(D63=60,$E$3,$F$3)) ->  | I63: 0 | O63: 30
B64: 6x6 | C64: = | E64: =IF(D64=0,$D$2,IF(D64=36,$E$3,$F$3)) ->  | I64: 0 | O64: 36
B65: 7x6 | C65: = | E65: =IF(D65=0,$D$2,IF(D65=42,$E$3,$F$3)) ->  | I65: 0 | O65: 42
B66: 3x6 | C66: = | E66: =IF(D66=0,$D$2,IF(D66=18,$E$3,$F$3)) ->  | I66: 0 | O66: 48
B67: 1x6 | C67: = | E67: =IF(D67=0,$D$2,IF(D67=6,$E$3,$F$3)) ->  | I67: 0 | O67: 54
B68: 5x6 | C68: = | E68: =IF(D68=0,$D$2,IF(D68=30,$E$3,$F$3)) ->  | I68: 0 | O68: 60
B70: 6x7 | C70: = | E70: =IF(D70=0,$D$2,IF(D70=42,$E$3,$F$3)) ->  | F70: Lösungen | H70: Lösungen verbergen | I70: =IF(E70="Richtig",1,0) -> 0 | O70: 7
B71: 10x7 | C71: = | E71: =IF(D71=0,$D$2,IF(D71=70,$E$3,$F$3)) ->  | I71: 0 | O71: 14
B72: 3x7 | C72: = | E72: =IF(D72=0,$D$2,IF(D72=21,$E$3,$F$3)) ->  | I72: 0 | O72: 21
B73: 8x7 | C73: = | E73: =IF(D73=0,$D$2,IF(D73=56,$E$3,$F$3)) ->  | I73: 0 | O73: 28
B74: 5x7 | C74: = | E74: =IF(D74=0,$D$2,IF(D74=35,$E$3,$F$3)) ->  | I74: 0 | O74: 35
B75: 1x7 | C75: = | E75: =IF(D75=0,$D$2,IF(D75=7,$E$3,$F$3)) ->  | I75: 0 | O75: 42
B76: 9x7 | C76: = | E76: =IF(D76=0,$D$2,IF(D76=63,$E$3,$F$3)) ->  | I76: 0 | O76: 49
B77: 4x7 | C77: = | E77: =IF(D77=0,$D$2,IF(D77=28,$E$3,$F$3)) ->  | I77: 0 | O77: 56
B78: 7x7 | C78: = | E78: =IF(D78=0,$D$2,IF(D78=49,$E$3,$F$3)) ->  | I78: 0 | O78: 63
B79: 2x7 | C79: = | E79: =IF(D79=0,$D$2,IF(D79=14,$E$3,$F$3)) ->  | I79: 0 | O79: 70
B81: 9x8 | C81: = | E81: =IF(D81=0,$D$2,IF(D81=72,$E$3,$F$3)) ->  | F81: Lösungen | H81: Lösungen verbergen | I81: =IF(E81="Richtig",1,0) -> 0 | O81: 8
B82: 2x8 | C82: = | E82: =IF(D82=0,$D$2,IF(D82=16,$E$3,$F$3)) ->  | I82: 0 | O82: 16
B83: 8x8 | C83: = | E83: =IF(D83=0,$D$2,IF(D83=64,$E$3,$F$3)) ->  | I83: 0 | O83: 24
B84: 4x8 | C84: = | E84: =IF(D84=0,$D$2,IF(D84=32,$E$3,$F$3)) ->  | I84: 0 | O84: 32
B85: 10x8 | C85: = | E85: =IF(D85=0,$D$2,IF(D85=80,$E$3,$F$3)) ->  | I85: 0 | O85: 40
B86: 6x8 | C86: = | E86: =IF(D86=0,$D$2,IF(D86=48,$E$3,$F$3)) ->  | I86: 0 | O86: 48
B87: 7x8 | C87: = | E87: =IF(D87=0,$D$2,IF(D87=56,$E$3,$F$3)) ->  | I87: 0 | O87: 56
B88: 3x8 | C88: = | E88: =IF(D88=0,$D$2,IF(D88=24,$E$3,$F$3)) ->  | I88: 0 | O88: 64
B89: 1x8 | C89: = | E89: =IF(D89=0,$D$2,IF(D89=8,$E$3,$F$3)) ->  | I89: 0 | O89: 72
B90: 5x8 | C90: = | E90: =IF(D90=0,$D$2,IF(D90=40,$E$3,$F$3)) ->  | I90: 0 | O90: 80
B92: 6x9 | C92: = | E92: =IF(D92=0,$D$2,IF(D92=54,$E$3,$F$3)) ->  | F92: Lösungen | H92: Lösungen verbergen | I92: =IF(E92="Richtig",1,0) -> 0 | O92: 9
B93: 10x9 | C93: = | E93: =IF(D93=0,$D$2,IF(D93=90,$E$3,$F$3)) ->  | I93: 0 | O93: 18
B94: 3x9 | C94: = | E94: =IF(D94=0,$D$2,IF(D94=27,$E$3,$F$3)) ->  | I94: 0 | O94: 27
B95: 8x9 | C95: = | E95: =IF(D95=0,$D$2,IF(D95=72,$E$3,$F$3)) ->  | I95: 0 | O95: 36
B96: 5x9 | C96: = | E96: =IF(D96=0,$D$2,IF(D96=45,$E$3,$F$3)) ->  | I96: 0 | O96: 45
B97: 1x9 | C97: = | E97: =IF(D97=0,$D$2,IF(D97=9,$E$3,$F$3)) ->  | I97: 0 | O97: 54
B98: 9x9 | C98: = | E98: =IF(D98=0,$D$2,IF(D98=81,$E$3,$F$3)) ->  | I98: 0 | O98: 63
B99: 4x9 | C99: = | E99: =IF(D99=0,$D$2,IF(D99=36,$E$3,$F$3)) ->  | I99: 0 | O99: 72
B100: 7x9 | C100: = | E100: =IF(D100=0,$D$2,IF(D100=63,$E$3,$F$3)) ->  | I100: 0 | O100: 81
B101: 2x9 | C101: = | E101: =IF(D101=0,$D$2,IF(D101=18,$E$3,$F$3)) ->  | I101: 0 | O101: 90
B103: 9x10 | C103: = | E103: =IF(D103=0,$D$2,IF(D103=90,$E$3,$F$3)) ->  | F103: Lösungen | H103: Lösungen verbergen | I103: =IF(E103="Richtig",1,0) -> 0 | O103: 10
B104: 2x10 | C104: = | E104: =IF(D104=0,$D$2,IF(D104=20,$E$3,$F$3)) ->  | I104: 0 | O104: 20
B105: 8x10 | C105: = | E105: =IF(D105=0,$D$2,IF(D105=80,$E$3,$F$3)) ->  | I105: 0 | O105: 30
B106: 4x10 | C106: = | E106: =IF(D106=0,$D$2,IF(D106=40,$E$3,$F$3)) ->  | I106: 0 | O106: 40
B107: 10x10 | C107: = | E107: =IF(D107=0,$D$2,IF(D107=100,$E$3,$F$3)) ->  | I107: 0 | O107: 50
B108: 6x10 | C108: = | E108: =IF(D108=0,$D$2,IF(D108=60,$E$3,$F$3)) ->  | I108: 0 | O108: 60
B109: 7x10 | C109: = | E109: =IF(D109=0,$D$2,IF(D109=70,$E$3,$F$3)) ->  | I109: 0 | O109: 70
B110: 3x10 | C110: = | E110: =IF(D110=0,$D$2,IF(D110=30,$E$3,$F$3)) ->  | I110: 0 | O110: 80
B111: 1x10 | C111: = | E111: =IF(D111=0,$D$2,IF(D111=10,$E$3,$F$3)) ->  | I111: 0 | O111: 90
B112: 5x10 | C112: = | E112: =IF(D112=0,$D$2,IF(D112=50,$E$3,$F$3)) ->  | I112: 0 | O112: 100

Sheet Bestenliste
A1: Die Bestenliste | G1: Die Bestenliste
A4: Platz | B4: Name | C4: Alter | D4: Datum | E4: Punkte | G4: Platz | H4: Name | I4: Alter | J4: Datum | K4: Punkte
A5: 1 | B5: Hannah | C5: 8 | D5: 2023-03-04T10:08:41.720 | E5: 79 | G5: 1 | H5: =IF(B5=0,"",B5) -> Hannah | I5: =IF(C5=0,"",C5) -> 8 | J5: 2023-03-04T10:08:41.720 | K5: 79
A6: 2 | G6: 2 | H6: =IF(B6=0,"",B6) ->  | I6: =IF(C6=0,"",C6) ->  | K6: =IF(E6=0,"",E6) -> 
A7: 3 | G7: 3
A8: 4 | G8: 4
A9: 5 | G9: 5
A10: 6 | G10: 6
A11: 7 | G11: 7
A12: 8 | G12: 8
A13: 9 | G13: 9
A14: 10 | G14: 10
A15: 11 | G15: 11
A16: 12 | G16: 12
A17: 13 | G17: 13
A18: 14 | G18: 14
A19: 15 | G19: 15
A20: 16 | G20: 16
A21: 17 | G21: 17
A22: 18 | G22: 18
A23: 19 | G23: 19
A24: 20 | G24: 20
A25: 21 | G25: 21
A26: 22 | G26: 22
A27: 23 | G27: 23
A28: 24 | G28: 24
A29: 25 | G29: 25
A30: 26 | G30: 26
A31: 27 | G31: 27
A32: 28 | G32: 28
A33: 29 | G33: 29
A34: 30 | G34: 30
A35: 31 | G35: 31
A36: 32 | G36: 32
A37: 33 | G37: 33
A38: 34 | G38: 34
A39: 35 | G39: 35
A40: 36 | G40: 36
A41: 37 | G41: 37
A42: 38 | G42: 38
A43: 39 | G43: 39
A44: 40 | G44: 40
A45: 41 | G45: 41
A46: 42 | G46: 42
A47: 43 | G47: 43
A48: 44 | G48: 44
A49: 45 | G49: 45
A50: 46 | G50: 46
A51: 47 | G51: 47
A52: 48 | G52: 48
A53: 49 | G53: 49
A54: 50 | G54: 50
A55: 51 | G55: 51
A56: 52 | G56: 52
A57: 53 | G57: 53
A58: 54 | G58: 54
A59: 55 | G59: 55
A60: 56 | G60: 56
A61: 57 | G61: 57
A62: 58 | G62: 58
A63: 59 | G63: 59
A64: 60 | G64: 60
A65: 61 | G65: 61
A66: 62 | G66: 62
A67: 63 | G67: 63
A68: 64 | G68: 64
A69: 65 | G69: 65
A70: 66 | G70: 66 | H70: =IF(B70=0,"",B70) ->  | I70: =IF(C70=0,"",C70) ->  | K70: =IF(E70=0,"",E70) -> 
A71: 67 | G71: 67
A72: 68 | G72: 68
A73: 69 | G73: 69
A74: 70 | G74: 70
A75: 71 | G75: 71
A76: 72 | G76: 72
A77: 73 | G77: 73
A78: 74 | G78: 74
A79: 75 | G79: 75
A80: 76 | G80: 76
A81: 77 | G81: 77
A82: 78 | G82: 78
A83: 79 | G83: 79
A84: 80 | G84: 80
A85: 81 | G85: 81
A86: 82 | G86: 82
A87: 83 | G87: 83
A88: 84 | G88: 84
A89: 85 | G89: 85
A90: 86 | G90: 86
A91: 87 | G91: 87
A92: 88 | G92: 88
A93: 89 | G93: 89
A94: 90 | G94: 90
A95: 91 | G95: 91
A96: 92 | G96: 92
A97: 93 | G97: 93
A98: 94 | G98: 94
A99: 95 | G99: 95
A100: 96 | G100: 96
A101: 97 | G101: 97
A102: 98 | G102: 98
A103: 99 | G103: 99
A104: 100 | G104: 100
A105: 101 | G105: 101
A106: 102 | G106: 102
A107: 103 | G107: 103
A108: 104 | G108: 104
A109: 105 | G109: 105
A110: 106 | G110: 106
A111: 107 | G111: 107
A112: 108 | G112: 108
A113: 109 | G113: 109
A114: 110 | G114: 110
A115: 111 | G115: 111
A116: 112 | G116: 112
A117: 113 | G117: 113
A118: 114 | G118: 114
A119: 115 | G119: 115
A120: 116 | G120: 116
A121: 117 | G121: 117
A122: 118 | G122: 118
A123: 119 | G123: 119
A124: 120 | G124: 120
A125: 121 | G125: 121
A126: 122 | G126: 122
A127: 123 | G127: 123
A128: 124 | G128: 124
A129: 125 | G129: 125
A130: 126 | G130: 126
A131: 127 | G131: 127
A132: 128 | G132: 128
A133: 129 | G133: 129
A134: 130 | G134: 130 | H134: =IF(B134=0,"",B134) ->  | I134: =IF(C134=0,"",C134) ->  | K134: =IF(E134=0,"",E134) -> 
A135: 131 | G135: 131
A136: 132 | G136: 132
A137: 133 | G137: 133
A138: 134 | G138: 134
A139: 135 | G139: 135
A140: 136 | G140: 136
A141: 137 | G141: 137
A142: 138 | G142: 138
A143: 139 | G143: 139
A144: 140 | G144: 140
A145: 141 | G145: 141
A146: 142 | G146: 142
A147: 143 | G147: 143
A148: 144 | G148: 144
A149: 145 | G149: 145
A150: 146 | G150: 146
A151: 147 | G151: 147
A152: 148 | G152: 148
A153: 149 | G153: 149
A154: 150 | G154: 150
A155: 151 | G155: 151
A156: 152 | G156: 152
A157: 153 | G157: 153
A158: 154 | G158: 154
A159: 155 | G159: 155
A160: 156 | G160: 156
A161: 157 | G161: 157
A162: 158 | G162: 158
A163: 159 | G163: 159
A164: 160 | G164: 160
A165: 161 | G165: 161
A166: 162 | G166: 162
A167: 163 | G167: 163
A168: 164 | G168: 164
A169: 165 | G169: 165
A170: 166 | G170: 166
A171: 167 | G171: 167
A172: 168 | G172: 168
A173: 169 | G173: 169
A174: 170 | G174: 170
A175: 171 | G175: 171
A176: 172 | G176: 172
A177: 173 | G177: 173
A178: 174 | G178: 174
A179: 175 | G179: 175
A180: 176 | G180: 176
A181: 177 | G181: 177
A182: 178 | G182: 178
A183: 179 | G183: 179
A184: 180 | G184: 180
A185: 181 | G185: 181
A186: 182 | G186: 182
A187: 183 | G187: 183
A188: 184 | G188: 184
A189: 185 | G189: 185
A190: 186 | G190: 186
A191: 187 | G191: 187
A192: 188 | G192: 188
A193: 189 | G193: 189
A194: 190 | G194: 190
A195: 191 | G195: 191
A196: 192 | G196: 192
A197: 193 | G197: 193
A198: 194 | G198: 194 | H198: =IF(B198=0,"",B198) ->  | I198: =IF(C198=0,"",C198) ->  | K198: =IF(E198=0,"",E198) -> 
A199: 195 | G199: 195
A200: 196 | G200: 196
A201: 197 | G201: 197
A202: 198 | G202: 198
... 808 more rows
